Workbook

Sheet Intro
A1: Multi, intro hold
E3: 1 | F3: 2 | G3: 3 | H3: 4 | I3: 5 | J3: 6 | K3: 7 | L3: 8 | M3: 9 | N3: 10 | O3: 11 | P3: 12 | Q3: 13 | R3: 14 | S3: 15 | T3: 16 | V3: Total | X3: Placering
A5: Tom Nørgaard - Trine Bilde | E5: 12.9 | F5: 12.01 | G5: 10.28 | H5: 11.6 | I5: 8.35 | J5: 14.23 | K5: 11.51 | L5: 8.5 | M5: 7.39 | N5: 5.79 | O5: 8.87 | P5: 9.73 | Q5: 6.26 | R5: 10.6 | S5: 15.05 | T5: 14.69 | V5: =AVERAGE(E5:T5) -> 10.485 | X5: 5
A6: Jørgen Cilleborg Hansen - Steen Schou | E6: 12.33 | F6: 9.2 | G6: 9.27 | H6: 7.98 | I6: 13.53 | J6: 12.07 | K6: 7.67 | L6: 8.84 | M6: 11.69 | N6: 8.06 | O6: 16.29 | P6: 5.57 | Q6: 11.23 | R6: 15.6 | S6: 8.32 | T6: 6.69 | V6: =AVERAGE(E6:T6) -> 10.27125 | X6: 8
A8: Dennis Bilde - Morten Bilde | E8: 0.77 | F8: 11.77 | G8: 9.72 | H8: 12.02 | I8: 15.03 | J8: 12.14 | K8: 13.35 | L8: 17.59 | M8: 8.35 | N8: 9.29 | O8: 12.88 | P8: 11.03 | Q8: 8.63 | R8: 3.77 | S8: 2.65 | T8: 10.37 | V8: =AVERAGE(E8:T8) -> 9.96 | X8: 11
A9: Johanne Bilde - Søren Caspersen | E9: 10.97 | F9: 10.05 | G9: 10.73 | H9: 8.4 | I9: 6.8 | J9: 6.89 | K9: 9.24 | L9: 12.84 | M9: 6.69 | N9: 8.77 | O9: 10.05 | P9: 10.11 | Q9: 5.15 | R9: 4.69 | S9: 7.31 | T9: 9.57 | V9: =AVERAGE(E9:T9) -> 8.64125 | X9: 15
A11: Benny Marquart - Keld Grann | E11: 14.35 | F11: 7.58 | G11: 11.35 | H11: 7.94 | I11: 11.65 | J11: 7.93 | K11: 6.65 | L11: 7.16 | M11: 12.04 | N11: 15.31 | O11: 4.73 | P11: 9.47 | Q11: 8.23 | R11: 15.45 | S11: 12.69 | T11: 9.63 | V11: =AVERAGE(E11:T11) -> 10.135 | X11: 9
A12: Marlene Henneberg - J.O Henneberg | E12: 12.29 | F12: 11.26 | G12: 17.13 | H12: 9.99 | I12: 6.47 | J12: 5.77 | K12: 10.76 | L12: 2.41 | M12: 18.69 | N12: 13.37 | O12: 11.55 | P12: 7.41 | Q12: 8.35 | R12: 14.73 | S12: 17.35 | T12: 10.43 | V12: =AVERAGE(E12:T12) -> 11.1225 | X12: 2
A14: Henrik Caspersen - Jens Kofoed | E14: 15.46 | F14: 5.77 | G14: 7.98 | H14: 6.83 | I14: 10.85 | J14: 14.47 | K14: 12.33 | L14: 11.5 | M14: 11.65 | N14: 11.23 | O14: 8.45 | P14: 10.53 | Q14: 8.21 | R14: 13.37 | S14: 11.28 | T14: 5.46 | V14: =AVERAGE(E14:T14) -> 10.335625 | X14: 7
A15: Camilla Bo Krefeld - Johan Hammelev | E15: 7.9 | F15: 6.61 | G15: 3.39 | H15: 12.92 | I15: 14.53 | J15: 18.4 | K15: 8.49 | L15: 11.16 | M15: 13.31 | N15: 10.71 | O15: 15.27 | P15: 12.59 | Q15: 9.82 | R15: 8.17 | S15: 17.15 | T15: 10.47 | V15: =AVERAGE(E15:T15) -> 11.305625 | X15: 1
A17: H K Sørensen - Niels Henriksen | E17: 4.54 | F17: 13.39 | G17: 11.47 | H17: 5.56 | I17: 12.89 | J17: 11.53 | K17: 13.13 | L17: 9.75 | M17: 12.61 | N17: 11.94 | O17: 9.95 | P17: 8.97 | Q17: 11.77 | R17: 5.27 | S17: 8.72 | T17: 9.53 | V17: =AVERAGE(E17:T17) -> 10.06375 | X17: 10
A18: Lars Tofte - Emil Jepsen | E18: 12.1 | F18: 14.23 | G18: 11.65 | H18: 17.32 | I18: 13.52 | J18: 12.37 | K18: 16.69 | L18: 2.03 | M18: 8.31 | N18: 14.21 | O18: 7.12 | P18: 9.89 | Q18: 11.65 | R18: 4.55 | S18: 2.85 | T18: 14.54 | V18: =AVERAGE(E18:T18) -> 10.814375 | X18: 3
A20: Morten Stege - Lars Peter Damgaard | E20: 7.71 | F20: 12.42 | G20: 16.61 | H20: 13.27 | I20: 7.11 | J20: 7.63 | K20: 13.74 | L20: 8.11 | M20: 5.75 | N20: 12.93 | O20: 3.71 | P20: 10.27 | Q20: 14.85 | R20: 16.23 | S20: 11.68 | T20: 5.31 | V20: =AVERAGE(E20:T20) -> 10.458125 | X20: 6
A21: Jan Pedersen - Nils Mønsted | E21: 5.65 | F21: 8.74 | G21: 12.02 | H21: 7.08 | I21: 6.48 | J21: 8.47 | K21: 18.12 | L21: 11.41 | M21: 9.76 | N21: 12.74 | O21: 11.13 | P21: 14.43 | Q21: 11.37 | R21: 15.31 | S21: 4.95 | T21: 13.31 | V21: =AVERAGE(E21:T21) -> 10.685625 | X21: 4
A23: Dorte Cilleborg - Michael Krogh Andersen | E23: 9.03 | F23: 8.23 | G23: 2.87 | H23: 12.06 | I23: 9.15 | J23: 1.6 | K23: 3.31 | L23: 10.25 | M23: 14.25 | N23: 7.26 | O23: 10.63 | P23: 5.68 | Q23: 8.77 | R23: 9.4 | S23: 13.72 | T23: 13.64 | V23: =AVERAGE(E23:T23) -> 8.740625 | X23: 14
A24: Niels Krøjgaard - Freddie Brøndum | E24: 19.23 | F24: 9.95 | G24: 8.65 | H24: 10.01 | I24: 5.47 | J24: 5.53 | K24: 6.87 | L24: 17.97 | M24: 10.24 | N24: 7.07 | O24: 12.87 | P24: 2.66 | Q24: 13.74 | R24: 4.4 | S24: 9.93 | T24: 9.84 | V24: =AVERAGE(E24:T24) -> 9.651875 | X24: 12
A26: Claus Hastrup - Thomas Mathiesen | E26: 7.1 | F26: 10.8 | G26: 8.35 | H26: 14.44 | I26: 13.2 | J26: 7.86 | K26: 1.88 | L26: 11.89 | M26: 1.31 | N26: 4.69 | O26: 7.13 | P26: 14.32 | Q26: 10.18 | R26: 6.63 | S26: 6.28 | T26: 10.16 | V26: =AVERAGE(E26:T26) -> 8.524666667 | X26: 16
A27: Jan Kølbæk - Mads Krøjgaard | E27: 7.67 | F27: 7.99 | G27: 8.53 | H27: 2.68 | I27: 4.97 | J27: 13.11 | K27: 6.26 | L27: 8.59 | M27: 7.96 | N27: 6.63 | O27: 9.37 | P27: 17.34 | Q27: 11.79 | R27: 11.83 | S27: 10.07 | T27: 6.36 | V27: =AVERAGE(E27:T27) -> 8.821875 | X27: 13

Sheet RR1
A1: Multi, RR1
E3: 1 | F3: 2 | G3: 3 | H3: 4 | I3: 5 | J3: 6 | K3: 7 | L3: 8 | M3: 9 | N3: 10 | O3: 11 | P3: 12 | Q3: 13 | R3: 14 | T3: Total | U3: Placering
A5: Tom Nørgaard - Trine Bilde | E5: 8.52 | F5: 11.6 | G5: 3.98 | H5: 16.36 | I5: 13 | J5: 17.52 | K5: 7.61 | L5: 4.3 | M5: 15.45 | N5: 11.03 | O5: 8.69 | P5: 11.43 | Q5: 6.35 | R5: 7.51 | T5: =AVERAGE(E5:R5) -> 10.23928571 | U5: 9
A6: Jan Pedersen - Nils Mønsted | E6: 14.3 | F6: 11.41 | G6: 5.33 | H6: 13.07 | I6: 16.64 | J6: 6.84 | K6: 12.17 | L6: 14.12 | M6: 3.7 | N6: 10.86 | O6: 7.48 | P6: 6.02 | Q6: 8.71 | R6: 2.54 | T6: =AVERAGE(E6:R6) -> 9.513571429 | U6: 12
A8: Johanne Bilde - Søren Caspersen | E8: 7.24 | F8: 2.83 | G8: 14.67 | H8: 3.64 | I8: 1.98 | J8: 6.46 | K8: 13.48 | L8: 4.5 | M8: 1.13 | N8: 3.24 | O8: 6.8 | P8: 14.7 | Q8: 10.81 | R8: 4.98 | T8: =AVERAGE(E8:R8) -> 7.674166667 | U8: 14
A9: Lars Tofte - Emil Jepsen | E9: 12.43 | F9: 7.82 | G9: 16.02 | H9: 6.93 | I9: 5.51 | J9: 12.63 | K9: 9.61 | L9: 9.7 | M9: 11.14 | N9: 7.8 | O9: 7.56 | P9: 13.13 | Q9: 9.54 | R9: 4.82 | T9: =AVERAGE(E9:R9) -> 9.617142857 | U9: 11
A11: H K Sørensen - Niels Henriksen | E11: 6.79 | F11: 4.64 | G11: 6.4 | H11: 10.49 | I11: 3.36 | J11: 2.48 | K11: 6.52 | L11: 10.3 | M11: 8.66 | N11: 4.83 | O11: 14.42 | P11: 5 | Q11: 7.07 | R11: 9.8 | T11: =AVERAGE(E11:R11) -> 7.379230769 | U11: 15
A12: Morten Stege - Lars Peter Damgaard | E12: 10.34 | F12: 12.43 | G12: 8.62 | H12: 9.8 | I12: 7 | J12: 13.16 | K12: 10.39 | L12: 15.5 | M12: 5.1 | N12: 7.16 | O12: 11.5 | P12: 9.46 | Q12: 13.43 | R12: 9.62 | T12: =AVERAGE(E12:R12) -> 10.25071429 | U12: 8
A14: Niels Krøjgaard - Freddie Brøndum | E14: 10.21 | F14: 16.89 | G14: 3.46 | H14: 10.9 | I14: 11.62 | J14: 13.9 | K14: 12.39 | L14: 5.88 | M14: 8.86 | N14: 16.66 | O14: 8.5 | P14: 15 | Q14: 15.9 | R14: 10 | T14: =AVERAGE(E14:R14) -> 11.44071429 | U14: 4
A15: Jan Kølbæk - Mads Krøjgaard | E15: 6.08 | F15: 14.28 | G15: 6.01 | H15: 11.87 | I15: 14.29 | J15: 14.34 | K15: 7.83 | L15: 15.7 | M15: 18.87 | N15: 12.2 | O15: 5.58 | P15: 10.54 | Q15: 10.63 | R15: 14.95 | T15: =AVERAGE(E15:R15) -> 11.655 | U15: 3
A17: Claus Hastrup - Thomas Mathiasen | E17: 13.92 | F17: 3.11 | G17: 3.48 | H17: 6.13 | I17: 5.98 | J17: 7.93 | K17: 5.91 | L17: 5.95 | M17: 4.55 | N17: 9.14 | O17: 13.2 | P17: 6.87 | Q17: 6.57 | R17: 10.2 | T17: =AVERAGE(E17:R17) -> 7.352857143 | U17: 16
A18: Benny Marquart - Keld Grann | E18: 9.79 | F18: 5.72 | G18: 6.9 | H18: 3.11 | I18: 8.76 | J18: 12.88 | K18: 4.38 | L18: 1.23 | M18: 16.3 | N18: 8.97 | O18: 12.44 | P18: 5.3 | Q18: 12.93 | R18: 10.38 | T18: =AVERAGE(E18:R18) -> 8.506428571 | U18: 13
A20: Marlene Henneberg - J.O Henneberg | E20: 13.21 | F20: 7.57 | G20: 16.54 | H20: 8.13 | I20: 11.24 | J20: 12.07 | K20: 12.37 | L20: 6.51 | M20: 5.81 | N20: 11.87 | O20: 11.31 | P20: 13.98 | Q20: 10.46 | R20: 15.02 | T20: =AVERAGE(E20:R20) -> 11.14928571 | U20: 6
A21: Henrik Caspersen - Jens Kofoed | E21: 9.66 | F21: 15.36 | G21: 13.99 | H21: 9.1 | I21: 14.02 | J21: 7.12 | K21: 2.41 | L21: 6.42 | M21: 7.62 | N21: 5.25 | O21: 12.52 | P21: 8.57 | Q21: 9.19 | R21: 15.18 | T21: =AVERAGE(E21:R21) -> 9.743571429 | U21: 10
A23: Camilla Bo Krefeld - Johan Hammelev | E23: 7.57 | F23: 17.17 | G23: 11.38 | H23: 9.51 | I23: 5.71 | J23: 6.1 | K23: 15.62 | L23: 14.05 | M23: 14.19 | N23: 14.75 | O23: 15.44 | P23: 16.26 | Q23: 13.65 | R23: 17.46 | T23: =AVERAGE(E23:R23) -> 12.77571429 | U23: 1
A24: Jørgen Cilleborg Hansen - Steen Schou | E24: 12.76 | F24: 12.18 | G24: 13.6 | H24: 10.2 | I24: 8.38 | J24: 5.66 | K24: 14.09 | L24: 18.77 | M24: 12.38 | N24: 8.13 | O24: 10.55 | P24: 15.64 | Q24: 11.29 | R24: 12.49 | T24: =AVERAGE(E24:R24) -> 11.86571429 | U24: 2
A26: Dennis Bilde - Morten Bilde | E26: 5.7 | F26: 8.4 | G26: 13.1 | H26: 13.87 | I26: 14.49 | J26: 13.54 | K26: 17.59 | L26: 13.49 | M26: 14.9 | N26: 15.17 | O26: 4.56 | P26: 4.36 | Q26: 9.37 | R26: 10 | T26: =AVERAGE(E26:R26) -> 11.32428571 | U26: 5
A27: Dorte Cilleborg - Michael Krogh Andersen | E27: 11.48 | F27: 8.59 | G27: 16.52 | H27: 16.89 | I27: 18.02 | J27: 7.37 | K27: 7.63 | L27: 13.58 | M27: 11.34 | N27: 12.84 | O27: 9.45 | P27: 3.74 | Q27: 4.1 | R27: 5.05 | T27: =AVERAGE(E27:R27) -> 10.47142857 | U27: 7

Sheet Imp1
A1: IMP Par I
B4: 1.aften | C4: 2.aften | D4: 3.aften | E4: 4.aften | F4: 5.aften | H4: Sum | I4: Placering
A6: Jørgen Cilleborg Hansen - Steen Schou | B6: -24 | C6: 63 | D6: 4 | E6: 60 | F6: 495 | H6: =SUM(B6:F6) -> 598 | I6: 1
A7: Lars Tofte - Emil Jepsen | B7: 31 | C7: 94 | D7: 217 | E7: 318 | F7: -90 | H7: 570 | I7: 2
A8: Niels Krøjgaard - Freddie Brøndum | B8: 38 | C8: 146 | D8: 442 | E8: -26 | F8: -95 | H8: 505 | I8: 3
A9: Jan Pedersen - Nils Mønsted | B9: -127 | C9: 119 | D9: 328 | E9: -1 | F9: 172 | H9: 491 | I9: 4
A10: Camilla Bo Krefeld - Johan Hammelev | B10: 157 | C10: 50 | D10: 189 | E10: 32 | F10: -18 | H10: 410 | I10: 5
A11: Tom Nørgaard - Trine Bilde | B11: -13 | C11: 188 | D11: -6 | E11: 38 | F11: 153 | H11: 360 | I11: 6
A12: Henrik Caspersen - Jens Kofoed | B12: 378 | C12: -416 | D12: -26 | E12: 213 | F12: 88 | H12: 237 | I12: 7
A13: Marlene Henneberg - J.O Henneberg | B13: 137 | C13: 66 | D13: 96 | E13: -153 | F13: 70 | H13: 216 | I13: 8
A14: Morten Stege - Lars Peter Damgaard | B14: -52 | C14: 163 | D14: -121 | E14: -89 | F14: 220 | H14: 121 | I14: 9
A15: Jan Kølbæk - Mads Krøjgaard | B15: 192 | C15: -22 | D15: -213 | E15: 45 | F15: -18 | H15: -16 | I15: 10
A16: Claus Hastrup - Thomas Mathiesen | B16: -163 | C16: 39 | D16: -56 | E16: -30 | F16: 171 | H16: -39 | I16: 11
A17: Dennis Bilde - Morten Bilde | B17: -91 | C17: -346 | D17: 235 | E17: -99 | F17: -50 | H17: -351 | I17: 12
A18: Dorte Cilleborg - Michael Krogh Andersen | B18: -157 | C18: 215 | D18: -337 | E18: -57 | F18: -51 | H18: -387 | I18: 13
A19: H K Sørensen - Niels Henriksen | B19: 6 | C19: -238 | D19: -155 | E19: 144 | F19: -179 | H19: -422 | I19: 14
A20: Benny Marquart - Keld Grann | B20: -257 | C20: -58 | D20: -479 | E20: 21 | F20: -138 | H20: -911 | I20: 15
A21: Johanne Bilde - Søren Caspersen | B21: -55 | C21: 77 | D21: -118 | E21: -416 | F21: -730 | H21: -1242 | I21: 16

Sheet RR2
A1: Multi, RR2
E3: 1 | F3: 2 | G3: 3 | H3: 4 | I3: 5 | J3: 6 | K3: 7 | L3: 8 | M3: 9 | N3: 10 | O3: 11 | P3: 12 | Q3: 13 | R3: 14 | T3: Total | U3: Placering
A5: Tom Nørgaard - Trine Bilde | E5: 5.86 | F5: 5.49 | G5: 16.2 | H5: 12.18 | I5: 7.3 | J5: 8.05 | K5: 12.86 | L5: 10.23 | M5: 16.63 | N5: 10.38 | O5: 18.76 | P5: 16.17 | Q5: 5.74 | R5: 11.36 | T5: =AVERAGE(E5:R5) -> 11.22928571 | U5: 3
A6: Jan Pedersen - Nils Mønsted | E6: 8.11 | F6: 3.52 | G6: 14.94 | H6: 12.6 | I6: 11.04 | J6: 12.78 | K6: 8.59 | L6: 9.14 | M6: 13.05 | N6: 10.86 | O6: 8.56 | P6: 7.94 | Q6: 13.66 | R6: 9.74 | T6: =AVERAGE(E6:R6) -> 10.32357143 | U6: 8
A8: Johanne Bilde - Søren Caspersen | E8: 9.7 | F8: 7.16 | G8: 8.75 | H8: 3.73 | I8: 16.29 | J8: 5.91 | K8: 7.2 | L8: 3.71 | M8: 11.79 | N8: 8.54 | O8: 3.22 | P8: 8.25 | Q8: 6.34 | R8: 8.64 | T8: =AVERAGE(E8:R8) -> 7.802142857 | U8: 16
A9: Lars Tofte - Emil Jepsen | E9: 8.79 | F9: 11.54 | G9: 10.12 | H9: 13.06 | I9: 15.36 | J9: 3.08 | K9: 13.01 | L9: 13.08 | M9: 10.15 | N9: 6.37 | O9: 5.19 | P9: 8.39 | Q9: 14.26 | R9: 10.26 | T9: =AVERAGE(E9:R9) -> 10.19 | U9: 9
A11: H K Sørensen - Niels Henriksen | E11: 2.88 | F11: 9.71 | G11: 4.42 | H11: 15.33 | I11: 8.96 | J11: 11.95 | K11: 4.59 | L11: 8.66 | M11: 11.1 | N11: 12.22 | O11: 14.81 | P11: 11.75 | Q11: 7.24 | R11: 7.59 | T11: =AVERAGE(E11:R11) -> 9.372142857 | U11: 11
A12: Morten Stege - Lars Peter Damgaard | E12: 10.07 | F12: 13.73 | G12: 8.85 | H12: 9.94 | I12: 12.7 | J12: 7.22 | K12: 5.77 | L12: 4.27 | M12: 9.77 | N12: 9.91 | O12: 16.78 | P12: 11.61 | Q12: 18.82 | R12: 7.82 | T12: =AVERAGE(E12:R12) -> 10.51857143 | U12: 7
A14: Niels Krøjgaard - Freddie Brøndum | E14: 10.84 | F14: 10.34 | G14: 11.15 | H14: 4.67 | I14: 10.06 | J14: 14.41 | K14: 10.57 | L14: 7.31 | M14: 9.85 | N14: 11.46 | O14: 11.44 | P14: 3.83 | Q14: 16.71 | R14: 7.19 | T14: =AVERAGE(E14:R14) -> 9.987857143 | U14: 10
A15: Jan Kølbæk - Mads Krøjgaard | E15: 16.69 | F15: 12.66 | G15: 15.58 | H15: 10.06 | I15: 16.68 | J15: 9.71 | K15: 10.21 | L15: 3.42 | M15: 7.92 | N15: 13.63 | O15: 1.24 | P15: 12.06 | Q15: 10.43 | R15: 14.4 | T15: =AVERAGE(E15:R15) -> 11.04928571 | U15: 4
A17: Claus Hastrup - Thomas Mathiasen | E17: 3.31 | F17: 9.66 | G17: 3.8 | H17: 7.4 | I17: 8.86 | J17: 7.91 | K17: 12.8 | L17: 6.92 | M17: 8.9 | N17: 10.09 | O17: 12.59 | P17: 5.74 | Q17: 13.11 | R17: 13.46 | T17: =AVERAGE(E17:R17) -> 8.896428571 | U17: 13.5
A18: Benny Marquart - Keld Grann | E18: 9.16 | F18: 7.34 | G18: 5.06 | H18: 7.82 | I18: 10.82 | J18: 14.51 | K18: 6.99 | L18: 16.29 | M18: 10.23 | N18: 7.78 | O18: 3.27 | P18: 6.69 | Q18: 10.48 | R18: 8.11 | T18: =AVERAGE(E18:R18) -> 8.896428571 | U18: 13.5
A20: Marlene Henneberg - J.O Henneberg | E20: 9.93 | F20: 10.29 | G20: 5.69 | H20: 16.6 | I20: 3.71 | J20: 16.92 | K20: 9.79 | L20: 12.69 | M20: 3.37 | N20: 9.14 | O20: 6.86 | P20: 3.98 | Q20: 9.52 | R20: 6.54 | T20: =AVERAGE(E20:R20) -> 8.930714286 | U20: 12
A21: Henrik Caspersen - Jens Kofoed | E21: 17.12 | F21: 6.27 | G21: 10.22 | H21: 13.08 | I21: 4.64 | J21: 14.09 | K21: 9.43 | L21: 16.58 | M21: 6.95 | N21: 9.62 | O21: 7.96 | P21: 13.29 | Q21: 6.89 | R21: 11.89 | T21: =AVERAGE(E21:R21) -> 10.57357143 | U21: 6
A23: Camilla Bo Krefeld - Johan Hammelev | E23: 14.14 | F23: 16.48 | G23: 9.88 | H23: 16.27 | I23: 11.14 | J23: 5.49 | K23: 15.41 | L23: 15.73 | M23: 12.91 | N23: 13.22 | O23: 13.14 | P23: 6.71 | Q23: 9.57 | R23: 12.81 | T23: =AVERAGE(E23:R23) -> 12.35 | U23: 1
A24: Jørgen Cilleborg Hansen - Steen Schou | E24: 11.89 | F24: 14.51 | G24: 11.25 | H24: 6.94 | I24: 9.18 | J24: 12.09 | K24: 14.23 | L24: 11.34 | M24: 12.59 | N24: 9.22 | O24: 12.04 | P24: 16.02 | Q24: 3.29 | R24: 5.6 | T24: =AVERAGE(E24:R24) -> 10.72785714 | U24: 5
A26: Dennis Bilde - Morten Bilde | E26: 11.21 | F26: 12.84 | G26: 14.31 | H26: 6.92 | I26: 9.94 | J26: 10.29 | K26: 7.14 | L26: 10.86 | M26: 7.09 | N26: 10.78 | O26: 16.73 | P26: 14.26 | Q26: 12.76 | R26: 12.18 | T26: =AVERAGE(E26:R26) -> 11.23642857 | U26: 2
A27: Dorte Cilleborg - Michael Krogh Andersen | E27: 10.3 | F27: 8.46 | G27: 9.78 | H27: 3.4 | I27: 3.32 | J27: 5.59 | K27: 11.41 | L27: 9.77 | M27: 7.41 | N27: 6.78 | O27: 7.41 | P27: 13.31 | Q27: 1.18 | R27: 12.41 | T27: =AVERAGE(E27:R27) -> 7.895 | U27: 15

Sheet Hold i alt
A1: Klub 32 - Hold 2015/2016
B5: RR1 | C5: RR2 | D5: Total | E5: Placering
A6: Camilla Bo Krefeld | B6: 106.44 | C6: 93.71 | D6: =SUM(B6:C6) -> 200.15 | E6: 1
A7: Freddie Brøndum | B7: 91.13 | C7: 77.7 | D7: 168.83 | E7: 2
A8: Jan Pedersen | B8: 69.22 | C8: 86.5 | D8: 155.72 | E8: 3
A9: Marlene Henneberg | B9: 79.24 | C9: 63.98 | D9: 143.22 | E9: 4
A10: Dennis Bilde | B10: 84.21 | C10: 57.62 | D10: 141.83 | E10: 5
A11: H K Sørensen | B11: 53.53 | C11: 72.84 | D11: 126.37 | E11: 6
A12: Johanne Bilde Kofoed | B12: 40.89 | C12: 52.21 | D12: 93.1 | E12: 7
A13: Claus Hastrup | B13: 35.34 | C13: 55.44 | D13: 90.78 | E13: 8

Sheet Slutspil
A1: SLUTSPIL
E3: 1 | F3: 2 | G3: 3 | H3: 4 | I3: 5 | J3: 6 | K3: 7 | L3: 8 | N3: Total | O3: Placering
A5: Tom Nørgaard - Trine Bilde | E5: 3.99 | F5: 16.26 | G5: 10.72 | H5: 9.75 | I5: 17.09 | J5: 7.17 | K5: 7.07 | L5: 4.79 | N5: =AVERAGE(E5:L5) -> 9.605 | O5: 12
A6: Jan Pedersen - Nils Mønsted | E6: 13.09 | F6: 12.95 | G6: 9.66 | H6: 7.41 | I6: 17.39 | J6: 8.26 | K6: 14.46 | L6: 8.83 | N6: =AVERAGE(E6:L6) -> 11.50625 | O6: 2
A8: Johanne Bilde - Søren Caspersen | E8: 10.42 | F8: 7.34 | G8: 5.59 | H8: 9.54 | I8: 10.93 | J8: 3.56 | K8: 8.28 | L8: 4 | N8: =AVERAGE(E8:L8) -> 7.4575 | O8: 16
A9: Lars Tofte - Emil Jepsen | E9: 7.54 | F9: 5.04 | G9: 10.84 | H9: 15.6 | I9: 8.97 | J9: 7.37 | K9: 19.11 | L9: 8.17 | N9: =AVERAGE(E9:L9) -> 10.33 | O9: 5
A11: H K Sørensen - Niels Henriksen | E11: 12.46 | F11: 12.66 | G11: 14.41 | H11: 4.4 | I11: 9.65 | J11: 18.65 | K11: 10.1 | L11: 14.4 | N11: =AVERAGE(E11:L11) -> 12.09125 | O11: 1
A12: Morten Stege - Lars Peter Damgaard | E12: 9.58 | F12: 14.96 | G12: 9.16 | H12: 10.46 | I12: 5.96 | J12: 16.09 | K12: 12.77 | L12: 6.97 | N12: =AVERAGE(E12:L12) -> 10.74375 | O12: 3
A14: Niels Krøjgaard - Freddie Brøndum | E14: 6.91 | F14: 3.74 | G14: 10.34 | H14: 10.25 | I14: 15.59 | J14: 10.17 | K14: 9.25 | L14: 4.41 | N14: =AVERAGE(E14:L14) -> 8.8325 | O14: 15
A15: Jan Kølbæk - Mads Krøjgaard | E15: 16.01 | F15: 7.05 | G15: 9.28 | H15: 12.59 | I15: 13.56 | J15: 7.82 | K15: 8.47 | L15: 10.7 | N15: =AVERAGE(E15:L15) -> 10.685 | O15: 4
A17: Claus Hastrup - Thomas Mathiasen | E17: 11.57 | F17: 15.91 | G17: 9.72 | H17: 17.47 | I17: 10.35 | J17: 3.91 | K17: 7.23 | L17: 5.6 | N17: =AVERAGE(E17:L17) -> 10.22 | O17: 7
A18: Benny Marquart - Keld Grann | E18: 14.5 | F18: 12.42 | G18: 5.26 | H18: 9.76 | I18: 14.04 | J18: 1.35 | K18: 9.9 | L18: 13.03 | N18: =AVERAGE(E18:L18) -> 10.0325 | O18: 10
A20: Marlene Henneberg - J.O Henneberg | E20: 9.42 | F20: 9.08 | G20: 13.68 | H20: 6.2 | I20: 6.44 | J20: 9.83 | K20: 11.53 | L20: 15.59 | N20: =AVERAGE(E20:L20) -> 10.22125 | O20: 6
A21: Henrik Caspersen - Jens Kofoed | E21: 6.13 | F21: 11.21 | G21: 11.84 | H21: 5.5 | I21: 4.41 | J21: 12.18 | K21: 10.75 | L21: 9.3 | N21: =AVERAGE(E21:L21) -> 8.915 | O21: 14
A23: Camilla Bo Krefeld - Johan Hammelev | E23: 13.87 | F23: 10.92 | G23: 6.32 | H23: 14.5 | I23: 2.91 | J23: 11.74 | K23: 5.54 | L23: 15.21 | N23: =AVERAGE(E23:L23) -> 10.12625 | O23: 8
A24: Jørgen Cilleborg Hansen - Steen Schou | E24: 10.58 | F24: 8.79 | G24: 8.16 | H24: 13.8 | I24: 2.61 | J24: 12.83 | K24: 12.93 | L24: 11.17 | N24: =AVERAGE(E24:L24) -> 10.10875 | O24: 9
A26: Dennis Bilde - Morten Bilde | E26: 8.43 | F26: 7.58 | G26: 14.74 | H26: 2.53 | I26: 11.03 | J26: 16.44 | K26: 0.89 | L26: 16 | N26: =AVERAGE(E26:L26) -> 9.705 | O26: 11
A27: Dorte Cilleborg - Michael Krogh Andersen | E27: 5.5 | F27: 4.09 | G27: 10.28 | H27: 10.24 | I27: 9.07 | J27: 12.63 | K27: 11.72 | L27: 10.83 | N27: =AVERAGE(E27:L27) -> 9.295 | O27: 13

Sheet Par
A1: Par
B3: 1.aften | C3: 2.aften | D3: 3.aften | E3: 4.aften | F3: 5.aften | H3: Sum | I3: Placering
A5: Henrik Caspersen - Jens Kofoed | B5: 21 | C5: 11 | D5: 68 | E5: -24 | F5: 38 | H5: =SUM(B5:F5) -> 114 | I5: 1
A6: Morten Stege - Lars Peter Damgaard | B6: 23 | C6: 87 | D6: 6 | E6: -8 | F6: -10 | H6: =SUM(B6:F6) -> 98 | I6: 2
A7: Jørgen Cilleborg Hansen - Steen Schou | B7: 15 | C7: 8 | D7: 4 | E7: -9 | F7: 47 | H7: =SUM(B7:F7) -> 65 | I7: 3
A8: Camilla Bo Krefeld - Johan Hammelev | B8: -16 | C8: -13 | D8: 49 | E8: 9 | F8: 22 | H8: =SUM(B8:F8) -> 51 | I8: 4
A9: Tom Nørgaard - Trine Bilde | B9: 12 | C9: -19 | D9: 25 | E9: 19 | F9: -9 | H9: =SUM(B9:F9) -> 28 | I9: 5
A10: Jan Pedersen - Nils Mønsted | B10: -17 | C10: 21 | D10: -18 | E10: 24 | F10: 1 | H10: =SUM(B10:F10) -> 11 | I10: 6
A11: Niels Krøjgaard - Freddie Brøndum | B11: 26 | C11: -12 | D11: -23 | E11: -28 | F11: 44 | H11: =SUM(B11:F11) -> 7 | I11: 7
A12: Lars Tofte - Emil Jepsen | B12: -22 | C12: -13 | D12: 7 | E12: 24 | F12: 2 | H12: =SUM(B12:F12) -> -2 | I12: 8
A13: Jan Kølbæk - Mads Krøjgaard | B13: -8 | C13: -40 | D13: 4 | E13: 33 | F13: 1 | H13: =SUM(B13:F13) -> -10 | I13: 9
A14: Dorte Cilleborg - Michael Krogh Andersen | B14: -22 | C14: -3 | D14: 3 | E14: 3 | F14: 5 | H14: =SUM(B14:F14) -> -14 | I14: 10
A15: Marlene Henneberg - J.O Henneberg | B15: 20 | C15: 19 | D15: -63 | E15: 10 | F15: -14 | H15: =SUM(B15:F15) -> -28 | I15: 11
A16: Johanne Bilde - Søren Caspersen | B16: -4 | C16: 1 | D16: -8 | E16: 7 | F16: -29 | H16: =SUM(B16:F16) -> -33 | I16: 12
A17: H K Sørensen - Niels Henriksen | B17: 2 | C17: 6 | D17: -56 | E17: 11 | F17: 3 | H17: =SUM(B17:F17) -> -34 | I17: 13
A18: Claus Hastrup - Thomas Mathiasen | B18: 16 | C18: -43 | D18: 9 | E18: -14 | F18: -29 | H18: =SUM(B18:F18) -> -61 | I18: 14
A19: Benny Marquart - Keld Grann | B19: -22 | C19: 19 | D19: -7 | E19: -23 | F19: -36 | H19: =SUM(B19:F19) -> -69 | I19: 15
A20: Dennis Bilde - Morten Bilde | B20: -24 | C20: -29 | D20: 0 | E20: -34 | F20: -36 | H20: =SUM(B20:F20) -> -123 | I20: 16
B21: =SUM(B5:B20) -> 0 | C21: =SUM(C5:C20) -> 0 | D21: =SUM(D5:D20) -> 0 | E21: =SUM(E5:E20) -> 0 | F21: =SUM(F5:F20) -> 0 | H21: =SUM(H5:H20) -> 0

Sheet Grand prix
A1: Grand prix klub 32 (2015-2016)
F3: Intro hold | G3: RR 1 | H3: IMP1 | I3: RR2 | J3: Slutspil | K3: Par | M3: Total | O3: Placering
A5: Camilla Bo Krefeld - Johan Hammelev | F5: =Intro!X15*4 -> 4 | G5: ='RR1'!U23*7 -> 7 | H5: ='Imp1'!I10*5 -> 25 | I5: ='RR2'!U23*7 -> 7 | J5: =Slutspil!O23*4 -> 32 | K5: =Par!I8*5 -> 20 | M5: =SUM(F5:L5) -> 95 | O5: 1
A6: Jørgen Cilleborg Hansen - Steen Schou | F6: =Intro!X6*4 -> 32 | G6: ='RR1'!U24*7 -> 14 | H6: ='Imp1'!I6*5 -> 5 | I6: ='RR2'!U24*7 -> 35 | J6: =Slutspil!O24*4 -> 36 | K6: =Par!I7*5 -> 15 | M6: =SUM(F6:L6) -> 137 | O6: 2
A7: Morten Stege - Lars Peter Damgaard | F7: =Intro!X20*4 -> 24 | G7: ='RR1'!U12*7 -> 56 | H7: ='Imp1'!I14*5 -> 45 | I7: ='RR2'!U12*7 -> 49 | J7: =Slutspil!O12*4 -> 12 | K7: =Par!I6*5 -> 10 | M7: =SUM(F7:L7) -> 196 | O7: 3
A8: Tom Nørgaard - Trine Bilde | F8: =Intro!X5*4 -> 20 | G8: ='RR1'!U5*7 -> 63 | H8: ='Imp1'!I11*5 -> 30 | I8: ='RR2'!U5*7 -> 21 | J8: =Slutspil!O5*4 -> 48 | K8: =Par!I9*5 -> 25 | M8: =SUM(F8:L8) -> 207 | O8: 4
A9: Jan Kølbæk - Mads Krøjgaard | F9: =Intro!X27*4 -> 52 | G9: ='RR1'!U15*7 -> 21 | H9: ='Imp1'!I15*5 -> 50 | I9: ='RR2'!U15*7 -> 28 | J9: =Slutspil!O15*4 -> 16 | K9: =Par!I13*5 -> 45 | M9: =SUM(F9:L9) -> 212 | O9: 5
A10: Jan Pedersen - Nils Mønsted | F10: =Intro!X21*4 -> 16 | G10: ='RR1'!U6*7 -> 84 | H10: ='Imp1'!I9*5 -> 20 | I10: ='RR2'!U6*7 -> 56 | J10: =Slutspil!O6*4 -> 8 | K10: =Par!I10*5 -> 30 | M10: =SUM(F10:L10) -> 214 | O10: 6
A11: Lars Tofte - Emil Jepsen | F11: =Intro!X18*4 -> 12 | G11: ='RR1'!U9*7 -> 77 | H11: ='Imp1'!I7*5 -> 10 | I11: ='RR2'!U9*7 -> 63 | J11: =Slutspil!O9*4 -> 20 | K11: =Par!I12*5 -> 40 | M11: =SUM(F11:L11) -> 222 | O11: 7
A12: Henrik Caspersen - Jens Kofoed | F12: =Intro!X14*4 -> 28 | G12: ='RR1'!U21*7 -> 70 | H12: ='Imp1'!I12*5 -> 35 | I12: ='RR2'!U21*7 -> 42 | J12: =Slutspil!O21*4 -> 56 | K12: =Par!I5*5 -> 5 | M12: =SUM(F12:L12) -> 236 | O12: 8
A13: Marlene Henneberg - J.O Henneberg | F13: =Intro!X12*4 -> 8 | G13: ='RR1'!U20*7 -> 42 | H13: ='Imp1'!I13*5 -> 40 | I13: ='RR2'!U20*7 -> 84 | J13: =Slutspil!O20*4 -> 24 | K13: =Par!I15*5 -> 55 | M13: =SUM(F13:L13) -> 253 | O13: 9
A14: Niels Krøjgaard - Freddie Brøndum | F14: =Intro!X24*4 -> 48 | G14: ='RR1'!U14*7 -> 28 | H14: ='Imp1'!I8*5 -> 15 | I14: ='RR2'!U14*7 -> 70 | J14: =Slutspil!O14*4 -> 60 | K14: =Par!I11*5 -> 35 | M14: =SUM(F14:L14) -> 256 | O14: 10
A15: Dennis Bilde - Morten Bilde | F15: =Intro!X8*4 -> 44 | G15: ='RR1'!U26*7 -> 35 | H15: ='Imp1'!I17*5 -> 60 | I15: ='RR2'!U26*7 -> 14 | J15: =Slutspil!O26*4 -> 44 | K15: =Par!I20*5 -> 80 | M15: =SUM(F15:L15) -> 277 | O15: 11
A16: H K Sørensen - Niels Henriksen | F16: =Intro!X17*4 -> 40 | G16: ='RR1'!U11*7 -> 105 | H16: ='Imp1'!I19*5 -> 70 | I16: ='RR2'!U11*7 -> 77 | J16: =Slutspil!O11*4 -> 4 | K16: =Par!I17*5 -> 65 | M16: =SUM(F16:L16) -> 361 | O16: 12
A17: Dorte Cilleborg - Michael Krogh Andersen | F17: =Intro!X23*4 -> 56 | G17: ='RR1'!U27*7 -> 49 | H17: ='Imp1'!I18*5 -> 65 | I17: ='RR2'!U27*7 -> 105 | J17: =Slutspil!O27*4 -> 52 | K17: =Par!I14*5 -> 50 | M17: =SUM(F17:L17) -> 377 | O17: 13
A18: Benny Marquart - Keld Grann | F18: =Intro!X11*4 -> 36 | G18: ='RR1'!U18*7 -> 91 | H18: ='Imp1'!I20*5 -> 75 | I18: ='RR2'!U18*7 -> 94.5 | J18: =Slutspil!O18*4 -> 40 | K18: =Par!I19*5 -> 75 | M18: =SUM(F18:L18) -> 411.5 | O18: 14
A19: Claus Hastrup - Thomas Mathiesen | F19: =Intro!X26*4 -> 64 | G19: ='RR1'!U17*7 -> 112 | H19: ='Imp1'!I16*5 -> 55 | I19: ='RR2'!U17*7 -> 94.5 | J19: =Slutspil!O17*4 -> 28 | K19: =Par!I18*5 -> 70 | M19: =SUM(F19:L19) -> 423.5 | O19: 15
A20: Johanne Bilde - Søren Caspersen | F20: =Intro!X9*4 -> 60 | G20: ='RR1'!U8*7 -> 98 | H20: ='Imp1'!I21*5 -> 80 | I20: ='RR2'!U8*7 -> 112 | J20: =Slutspil!O8*4 -> 64 | K20: =Par!I16*5 -> 60 | M20: =SUM(F20:L20) -> 474 | O20: 16
